[Event "Swedish Chess Championship 2019: Weekend 1"]
[Site "Stiga Sports Arena, Arenatorget 1, Eskilstuna, Sweden"]
[Date "2019.07.07"]
[Round "4.12"]
[White "Berglund, Nils-Erik"]
[Black "Nyberg, Stefan"]
[Result "1-0"]
[TimeControl "90 minutes + 30 seconds per move from move one"]
[WhiteFideId "1710494"]
[BlackFideId "1737171"]
[WhiteElo "1926"]
[BlackElo "1921"]

1. d4 {[%clk 01:30:58]} {[%emt 00:05:14]} d5 {[%clk 01:30:01]} {[%emt
00:00:59]} 2. c4 {[%clk 01:31:22]} {[%emt 00:00:06]} e6 {[%clk 01:30:24]}
{[%emt 00:00:08]} 3. Nf3 {[%clk 01:31:35]} {[%emt 00:00:17]} Nf6 {[%clk
01:30:51]} {[%emt 00:00:03]} 4. g3 {[%clk 01:31:57]} {[%emt 00:00:07]} Be7
{[%clk 01:30:54]} {[%emt 00:00:27]} 5. Bg2 {[%clk 01:32:21]} {[%emt 00:00:06]}
O-O {[%clk 01:31:18]} {[%emt 00:00:06]} 6. O-O {[%clk 01:32:47]} {[%emt
00:00:04]} c6 {[%clk 01:31:22]} {[%emt 00:00:27]} 7. b3 {[%clk 01:31:34]}
{[%emt 00:01:42]} b6 {[%clk 01:30:49]} {[%emt 00:01:03]} 8. Bb2 {[%clk
01:31:56]} {[%emt 00:00:08]} Nbd7 {[%clk 01:29:56]} {[%emt 00:01:23]} 9. Nbd2
{[%clk 01:31:51]} {[%emt 00:00:35]} Bb7 {[%clk 01:27:04]} {[%emt 00:03:23]} 10.
Re1 {[%clk 01:31:19]} {[%emt 00:01:02]} c5 {[%clk 01:20:49]} {[%emt 00:06:45]}
11. e3 {[%clk 01:20:46]} {[%emt 00:11:02]} Rc8 {[%clk 01:12:03]} {[%emt
00:09:16]} 12. Rc1 {[%clk 01:19:15]} {[%emt 00:02:01]} Re8 {[%clk 01:09:50]}
{[%emt 00:02:42]} 13. Ne5 {[%clk 01:12:18]} {[%emt 00:07:29]} Ba8 {[%clk
01:04:30]} {[%emt 00:05:50]} 14. Ndf3 {[%clk 01:08:20]} {[%emt 00:04:27]} Nxe5
{[%clk 00:42:08]} {[%emt 00:22:52]} 15. Nxe5 {[%clk 01:08:24]} {[%emt
00:00:27]} dxc4 {[%clk 00:38:02]} {[%emt 00:04:36]} 16. Bxa8 {[%clk 01:08:19]}
{[%emt 00:00:34]} Rxa8 {[%clk 00:38:22]} {[%emt 00:00:09]} 17. Nc6 {[%clk
01:03:53]} {[%emt 00:04:56]} Qd7 {[%clk 00:28:15]} {[%emt 00:10:38]} 18. Nxe7+
{[%clk 01:04:09]} {[%emt 00:00:14]} Qxe7 {[%clk 00:28:32]} {[%emt 00:00:13]} 19.
Rxc4 {[%clk 01:04:29]} {[%emt 00:00:10]} cxd4 {[%clk 00:24:18]} {[%emt
00:04:44]} 20. Bxd4 {[%clk 01:02:05]} {[%emt 00:02:54]} e5 {[%clk 00:16:03]}
{[%emt 00:08:46]} 21. Bb2 {[%clk 01:01:06]} {[%emt 00:01:28]} Qe6 {[%clk
00:16:09]} {[%emt 00:00:25]} 22. Qe2 {[%clk 00:55:50]} {[%emt 00:05:47]} Rad8
{[%clk 00:14:33]} {[%emt 00:02:06]} 23. Rec1 {[%clk 00:42:31]} {[%emt
00:13:48]} h6 {[%clk 00:08:38]} {[%emt 00:06:25]} 24. Rc7 {[%clk 00:37:43]}
{[%emt 00:05:19]} Ne4 {[%clk 00:06:15]} {[%emt 00:02:54]} 25. R7c2 {[%clk
00:36:09]} {[%emt 00:02:04]} Ng5 {[%clk 00:05:34]} {[%emt 00:01:10]} 26. h4
{[%clk 00:33:06]} {[%emt 00:03:33]} Ne4 {[%clk 00:05:52]} {[%emt 00:00:12]} 27.
Kh2 {[%clk 00:32:39]} {[%emt 00:00:57]} Nc5 {[%clk 00:05:11]} {[%emt 00:01:11]}
28. Rd1 {[%clk 00:31:16]} {[%emt 00:01:53]} e4 {[%clk 00:04:19]} {[%emt
00:01:22]} 29. Rxd8 {[%clk 00:30:47]} {[%emt 00:00:59]} Rxd8 {[%clk 00:04:48]}
{[%emt 00:00:02]} 30. Bd4 {[%clk 00:31:06]} {[%emt 00:00:10]} Nd3 {[%clk
00:04:54]} {[%emt 00:00:25]} 31. Rc7 {[%clk 00:30:33]} {[%emt 00:01:03]} Rc8
{[%clk 00:03:33]} {[%emt 00:01:51]} 32. Rxc8+ Qxc8 {[%clk 00:04:01]} 33. Bb2
{[%clk 00:27:26]} {[%emt 00:03:35]} a6 {[%clk 00:03:51]} {[%emt 00:00:40]} 34.
a3 {[%clk 00:27:17]} {[%emt 00:00:39]} b5 {[%clk 00:04:06]} {[%emt 00:00:15]}
35. Kg2 {[%clk 00:27:01]} {[%emt 00:00:46]} Qe6 {[%clk 00:04:18]} {[%emt
00:00:18]} 36. Qd2 {[%clk 00:26:36]} {[%emt 00:00:55]} Qxb3 {[%clk 00:04:33]}
{[%emt 00:00:16]} 37. Bc3 {[%clk 00:24:59]} {[%emt 00:02:06]} Qxa3 {[%clk
00:04:08]} {[%emt 00:00:55]} 38. f3 {[%clk 00:25:25]} {[%emt 00:00:04]} f5
{[%clk 00:04:03]} {[%emt 00:00:35]} 39. g4 {[%clk 00:24:36]} {[%emt 00:01:19]}
b4 {[%clk 00:04:14]} {[%emt 00:00:19]} 40. Bd4 {[%clk 00:24:49]} {[%emt
00:00:16]} g6 {[%clk 00:04:11]} {[%emt 00:00:34]} 41. gxf5 {[%clk 00:25:12]}
{[%emt 00:00:07]} gxf5 {[%clk 00:04:37]} {[%emt 00:00:04]} 42. fxe4 {[%clk
00:25:27]} {[%emt 00:00:14]} Qc1 {[%clk 00:02:52]} {[%emt 00:02:13]} 43. Qxd3
{[%clk 00:25:12]} {[%emt 00:00:47]} fxe4 {[%clk 00:03:07]} {[%emt 00:00:15]} 44.
Qxe4 {[%clk 00:25:20]} {[%emt 00:00:22]} Qd2+ {[%clk 00:03:17]} {[%emt
00:00:20]} 45. Kh3 {[%clk 00:25:21]} {[%emt 00:00:28]} 1-0

[Event "Swedish Chess Championship 2019: Weekend 1"]
[Site "Stiga Sports Arena, Arenatorget 1, Eskilstuna, Sweden"]
[Date "2019.07.07"]
[Round "5.1"]
[White "Jakenberg, Jussi"]
[Black "Westerberg, Jonathan"]
[Result "0-1"]
[TimeControl "90 minutes + 30 seconds per move from move one"]
[BlackTitle "IM"]
[WhiteFideId "1710931"]
[BlackFideId "1701754"]
[WhiteElo "2099"]
[BlackElo "2546"]

1. e4 {[%clk 01:30:58]} {[%emt 00:00:02]} c5 {[%clk 01:30:51]} {[%emt
00:00:09]} 2. Nf3 {[%clk 01:31:26]} {[%emt 00:00:02]} Nc6 {[%clk 01:31:07]}
{[%emt 00:00:14]} 3. Bb5 {[%clk 01:31:52]} {[%emt 00:00:05]} g6 {[%clk
01:31:30]} {[%emt 00:00:06]} 4. Bxc6 {[%clk 01:31:58]} {[%emt 00:00:24]} dxc6
{[%clk 01:31:55]} {[%emt 00:00:05]} 5. d3 {[%clk 01:31:38]} {[%emt 00:00:50]}
Bg7 {[%clk 01:31:58]} {[%emt 00:00:26]} 6. h3 {[%clk 01:31:58]} {[%emt
00:00:10]} Nf6 {[%clk 01:31:37]} {[%emt 00:00:50]} 7. Nc3 {[%clk 01:28:40]}
{[%emt 00:03:49]} Nd7 {[%clk 01:31:00]} {[%emt 00:01:07]} 8. Be3 {[%clk
01:28:27]} {[%emt 00:00:43]} e5 {[%clk 01:31:16]} {[%emt 00:00:14]} 9. Qd2
{[%clk 01:28:11]} {[%emt 00:00:47]} h6 {[%clk 01:31:36]} {[%emt 00:00:09]} 10.
a3 {[%clk 01:25:05]} {[%emt 00:03:38]} a5 {[%clk 01:27:20]} {[%emt 00:04:45]}
11. O-O {[%clk 01:24:00]} {[%emt 00:01:33]} Qe7 {[%clk 01:27:22]} {[%emt
00:00:29]} 12. Nh2 {[%clk 01:15:14]} {[%emt 00:09:17]} a4 {[%clk 01:25:34]}
{[%emt 00:02:18]} 13. Rfb1 {[%clk 01:11:29]} {[%emt 00:04:15]} Nf8 {[%clk
01:25:20]} {[%emt 00:00:43]} 14. b3 {[%clk 01:09:20]} {[%emt 00:02:40]} axb3
{[%clk 01:25:12]} {[%emt 00:00:38]} 15. cxb3 {[%clk 01:09:49]} {[%emt
00:00:02]} Ne6 {[%clk 01:24:09]} {[%emt 00:01:33]} 16. Na4 {[%clk 01:07:48]}
{[%emt 00:02:30]} Ra6 {[%clk 01:23:07]} {[%emt 00:01:32]} 17. Rc1 {[%clk
01:04:40]} {[%emt 00:03:38]} b6 {[%clk 01:23:05]} {[%emt 00:00:32]} 18. Qd1
{[%clk 01:01:12]} {[%emt 00:03:58]} O-O {[%clk 01:22:07]} {[%emt 00:01:28]} 19.
Nf3 {[%clk 00:49:20]} {[%emt 00:12:22]} Bd7 {[%clk 01:21:54]} {[%emt 00:00:43]}
20. Nb2 {[%clk 00:48:15]} {[%emt 00:01:35]} Nd4 {[%clk 01:21:28]} {[%emt
00:00:55]} 21. a4 {[%clk 00:46:58]} {[%emt 00:01:48]} f5 {[%clk 01:20:31]}
{[%emt 00:01:26]} 22. Bxd4 {[%clk 00:41:33]} {[%emt 00:05:55]} cxd4 {[%clk
01:20:08]} {[%emt 00:00:53]} 23. Nd2 {[%clk 00:40:40]} {[%emt 00:01:23]} f4
{[%clk 01:19:40]} {[%emt 00:00:57]} 24. Nbc4 {[%clk 00:39:02]} {[%emt
00:02:09]} Rfa8 {[%clk 01:17:15]} {[%emt 00:02:54]} 25. Rcb1 {[%clk 00:37:13]}
{[%emt 00:02:19]} b5 {[%clk 01:16:12]} {[%emt 00:01:33]} 26. axb5 {[%clk
00:34:26]} {[%emt 00:03:17]} cxb5 {[%clk 01:16:37]} {[%emt 00:00:06]} 27. Nb2
{[%clk 00:34:46]} {[%emt 00:00:10]} Qb4 {[%clk 01:15:55]} {[%emt 00:01:10]} 28.
Rxa6 {[%clk 00:25:27]} {[%emt 00:09:52]} Rxa6 {[%clk 01:16:23]} {[%emt
00:00:02]} 29. Nf3 {[%clk 00:25:36]} {[%emt 00:00:20]} Ra2 {[%clk 01:14:42]}
{[%emt 00:02:10]} 30. Qe1 {[%clk 00:22:25]} {[%emt 00:03:42]} Qc3 {[%clk
01:14:41]} {[%emt 00:00:31]} 0-1

[Event "Swedish Chess Championship 2019: Weekend 1"]
[Site "Stiga Sports Arena, Arenatorget 1, Eskilstuna, Sweden"]
[Date "2019.07.07"]
[Round "5.2"]
[White "Mardell, Jonas"]
[Black "Namini, Armin"]
[Result "1/2-1/2"]
[TimeControl "90 minutes + 30 seconds per move from move one"]
[WhiteFideId "1705636"]
[BlackFideId "1706322"]
[WhiteElo "2024"]
[BlackElo "2241"]

1. e4 {[%clk 01:30:36]} {[%emt 00:00:14]} c5 {[%clk 01:30:56]} {[%emt
00:00:14]} 2. c3 {[%clk 01:30:58]} {[%emt 00:00:09]} Nf6 {[%clk 01:31:21]}
{[%emt 00:00:05]} 3. e5 {[%clk 01:31:22]} {[%emt 00:00:05]} Nd5 {[%clk
01:31:46]} {[%emt 00:00:05]} 4. d4 {[%clk 01:31:47]} {[%emt 00:00:04]} cxd4
{[%clk 01:32:12]} {[%emt 00:00:04]} 5. Qxd4 {[%clk 01:32:12]} {[%emt 00:00:05]}
e6 {[%clk 01:32:12]} {[%emt 00:00:31]} 6. Bc4 {[%clk 01:32:36]} {[%emt
00:00:05]} Nc6 {[%clk 01:30:43]} {[%emt 00:02:00]} 7. Qe4 {[%clk 01:30:48]}
{[%emt 00:02:17]} d6 {[%clk 01:30:40]} {[%emt 00:00:33]} 8. Nf3 {[%clk
01:17:23]} {[%emt 00:13:54]} dxe5 {[%clk 01:31:03]} {[%emt 00:00:08]} 9. Nxe5
{[%clk 01:17:39]} {[%emt 00:00:14]} Nxe5 {[%clk 01:31:18]} {[%emt 00:00:15]} 10.
Qxe5 {[%clk 01:18:01]} {[%emt 00:00:07]} Qf6 {[%clk 01:28:17]} {[%emt
00:03:32]} 11. Qg3 {[%clk 01:14:36]} {[%emt 00:03:54]} Bd7 {[%clk 01:20:35]}
{[%emt 00:08:12]} 12. Bg5 {[%clk 01:08:39]} {[%emt 00:06:28]} Qg6 {[%clk
01:16:41]} {[%emt 00:04:25]} 13. Bxd5 {[%clk 01:06:05]} {[%emt 00:03:03]} exd5
{[%clk 01:16:27]} {[%emt 00:00:45]} 14. O-O {[%clk 01:06:04]} {[%emt 00:00:30]}
h6 {[%clk 01:06:04]} {[%emt 00:10:53]} 15. Re1+ {[%clk 00:57:47]} {[%emt
00:08:48]} Be6 {[%clk 01:06:19]} {[%emt 00:00:14]} 16. Bf4 {[%clk 00:56:26]}
{[%emt 00:01:51]} Qxg3 {[%clk 01:06:15]} {[%emt 00:00:35]} 17. Bxg3 {[%clk
00:56:42]} {[%emt 00:00:14]} Kd7 {[%clk 00:54:24]} {[%emt 00:12:20]} 18. Be5
{[%clk 00:51:55]} {[%emt 00:05:17]} f6 {[%clk 00:52:08]} {[%emt 00:02:46]} 19.
Bd4 {[%clk 00:51:36]} {[%emt 00:00:49]} Bd6 {[%clk 00:46:32]} {[%emt 00:06:06]}
20. a4 {[%clk 00:47:21]} {[%emt 00:04:45]} Bf7 {[%clk 00:44:33]} {[%emt
00:02:30]} 21. Na3 {[%clk 00:46:38]} {[%emt 00:01:13]} Rhe8 {[%clk 00:39:19]}
{[%emt 00:05:43]} 22. Nb5 {[%clk 00:44:30]} {[%emt 00:02:38]} a6 {[%clk
00:34:37]} {[%emt 00:05:13]} 1/2-1/2

[Event "Swedish Chess Championship 2019: Weekend 1"]
[Site "Stiga Sports Arena, Arenatorget 1, Eskilstuna, Sweden"]
[Date "2019.07.07"]
[Round "5.3"]
[White "Tolen, Michael"]
[Black "Eriksson, Kristian"]
[Result "1/2-1/2"]
[TimeControl "90 minutes + 30 seconds per move from move one"]
[WhiteFideId "1714376"]
[BlackFideId "1705172"]
[WhiteElo "2026"]
[BlackElo "2123"]

1. e4 {[%clk 01:30:32]} {[%emt 00:00:28]} e6 {[%clk 01:30:19]} {[%emt
00:00:42]} 2. d4 {[%clk 01:30:48]} {[%emt 00:00:13]} d5 {[%clk 01:30:43]}
{[%emt 00:00:06]} 3. Nc3 {[%clk 01:30:54]} {[%emt 00:00:24]} Bb4 {[%clk
01:30:45]} {[%emt 00:00:27]} 4. e5 {[%clk 01:30:28]} {[%emt 00:00:57]} c5
{[%clk 01:30:49]} {[%emt 00:00:26]} 5. a3 {[%clk 01:30:47]} {[%emt 00:00:12]}
Bxc3+ {[%clk 01:31:12]} {[%emt 00:00:07]} 6. bxc3 {[%emt 00:00:07]} Ne7 {[%emt
00:00:19]} 7. Nf3 {[%clk 01:30:14]} {[%emt 00:00:36]} Nbc6 {[%clk 01:30:40]}
{[%emt 00:01:02]} 8. Bd3 {[%clk 01:29:25]} {[%emt 00:01:20]} Qc7 {[%clk
01:28:28]} {[%emt 00:02:41]} 9. O-O {[%clk 01:28:50]} {[%emt 00:01:05]} c4
{[%clk 01:20:27]} {[%emt 00:08:30]} 10. Be2 {[%clk 01:26:54]} {[%emt 00:02:26]}
Bd7 {[%clk 01:20:50]} {[%emt 00:00:07]} 11. a4 {[%clk 01:26:21]} {[%emt
00:01:03]} O-O-O {[%clk 01:18:16]} {[%emt 00:03:03]} 12. Ba3 {[%clk 01:25:44]}
{[%emt 00:01:09]} f6 {[%clk 01:14:15]} {[%emt 00:04:30]} 13. a5 {[%clk
01:19:24]} {[%emt 00:06:51]} Be8 {[%clk 01:08:39]} {[%emt 00:06:05]} 14. Qd2
{[%clk 01:18:20]} {[%emt 00:01:34]} Ng6 {[%clk 01:03:55]} {[%emt 00:05:13]} 15.
Bd6 {[%clk 01:14:20]} {[%emt 00:04:31]} Rxd6 {[%clk 01:02:36]} {[%emt
00:01:49]} 16. exd6 {[%clk 01:13:24]} {[%emt 00:01:26]} Qxd6 {[%clk 01:02:48]}
{[%emt 00:00:17]} 17. Rfb1 {[%clk 01:12:30]} {[%emt 00:01:23]} Nce7 {[%clk
00:55:45]} {[%emt 00:07:34]} 18. Rb4 {[%clk 01:06:08]} {[%emt 00:06:53]} Bc6
{[%clk 00:52:45]} {[%emt 00:03:30]} 19. Qc1 {[%clk 01:05:49]} {[%emt 00:00:49]}
Nf5 {[%clk 00:49:49]} {[%emt 00:03:25]} 20. Qb2 {[%clk 01:05:41]} {[%emt
00:00:38]} Qc7 {[%clk 00:46:18]} {[%emt 00:04:00]} 21. Nd2 {[%clk 01:02:44]}
{[%emt 00:03:27]} Nd6 {[%clk 00:41:41]} {[%emt 00:05:08]} 22. Re1 {[%clk
00:56:58]} {[%emt 00:06:15]} a6 {[%clk 00:31:06]} {[%emt 00:11:06]} 23. Rb6
{[%clk 00:46:12]} {[%emt 00:11:16]} Nb5 {[%clk 00:28:06]} {[%emt 00:03:29]}
1/2-1/2

[Event "Swedish Chess Championship 2019: Weekend 1"]
[Site "Stiga Sports Arena, Arenatorget 1, Eskilstuna, Sweden"]
[Date "2019.07.07"]
[Round "5.4"]
[White "Nordebrink, Johan"]
[Black "Johansson, Roland"]
[Result "1-0"]
[TimeControl "90 minutes + 30 seconds per move from move one"]
[WhiteFideId "1706721"]
[BlackFideId "1716123"]
[WhiteElo "2109"]
[BlackElo "2002"]

1. e4 {[%clk 01:27:50]} {[%emt 00:00:28]} c5 {[%clk 01:30:55]} {[%emt
00:00:05]} 2. c3 {[%clk 01:28:14]} {[%emt 00:00:07]} d5 {[%clk 01:31:19]}
{[%emt 00:00:05]} 3. exd5 {[%clk 01:28:39]} {[%emt 00:00:06]} Qxd5 {[%clk
01:31:45]} {[%emt 00:00:04]} 4. d4 {[%clk 01:28:57]} {[%emt 00:00:12]} e5
{[%clk 01:27:17]} {[%emt 00:04:58]} 5. dxe5 {[%clk 01:17:06]} {[%emt 00:12:21]}
Qxe5+ {[%clk 01:26:47]} {[%emt 00:01:00]} 6. Be3 {[%clk 01:17:27]} {[%emt
00:00:08]} Nf6 {[%clk 01:24:06]} {[%emt 00:03:11]} 7. Nf3 {[%clk 01:17:01]}
{[%emt 00:00:56]} Qd6 {[%clk 01:22:33]} {[%emt 00:02:03]} 8. Na3 {[%clk
01:11:41]} {[%emt 00:05:50]} Qxd1+ {[%clk 01:13:48]} {[%emt 00:09:15]} 9. Rxd1
{[%clk 01:12:03]} {[%emt 00:00:08]} Be7 {[%clk 01:11:57]} {[%emt 00:02:21]} 10.
Nb5 {[%clk 01:09:34]} {[%emt 00:02:58]} Na6 {[%clk 01:11:20]} {[%emt 00:01:07]}
11. Ne5 {[%clk 01:03:02]} {[%emt 00:07:02]} Ng4 {[%clk 00:59:46]} {[%emt
00:12:05]} 12. Nxg4 {[%clk 00:57:52]} {[%emt 00:05:40]} Bxg4 {[%clk 00:59:27]}
{[%emt 00:00:49]} 13. Be2 {[%clk 00:49:59]} {[%emt 00:08:22]} Bxe2 {[%clk
00:58:19]} {[%emt 00:01:38]} 14. Kxe2 {[%clk 00:50:24]} {[%emt 00:00:06]} f6
{[%clk 00:49:47]} {[%emt 00:09:02]} 15. Kf3 {[%clk 00:48:16]} {[%emt 00:02:38]}
Kf7 {[%clk 00:45:03]} {[%emt 00:05:14]} 16. Rd7 {[%clk 00:47:54]} {[%emt
00:00:52]} b6 {[%clk 00:44:56]} {[%emt 00:00:37]} 17. Rhd1 {[%clk 00:38:57]}
{[%emt 00:09:27]} Nb8 {[%clk 00:28:59]} {[%emt 00:16:28]} 18. Rc7 {[%clk
00:32:10]} {[%emt 00:07:16]} Na6 {[%clk 00:16:09]} {[%emt 00:13:22]} 19. Rb7
{[%clk 00:27:25]} {[%emt 00:05:13]} Rhb8 {[%clk 00:13:58]} {[%emt 00:02:41]} 20.
Rdd7 {[%clk 00:27:24]} {[%emt 00:00:29]} Rxb7 {[%clk 00:12:53]} {[%emt
00:01:37]} 21. Rxb7 {[%clk 00:27:47]} {[%emt 00:00:07]} Ke6 {[%clk 00:12:02]}
{[%emt 00:01:20]} 22. Nxa7 {[%clk 00:26:38]} {[%emt 00:01:38]} Rb8 {[%clk
00:11:17]} {[%emt 00:01:15]} 23. Rxe7+ {[%clk 00:24:04]} {[%emt 00:03:05]} Kxe7
{[%clk 00:11:39]} {[%emt 00:00:08]} 24. Nc6+ {[%clk 00:24:30]} {[%emt
00:00:04]} Ke6 {[%clk 00:11:47]} {[%emt 00:00:22]} 25. Nxb8 {[%clk 00:24:50]}
{[%emt 00:00:11]} Nxb8 {[%clk 00:12:13]} {[%emt 00:00:04]} 26. c4 {[%clk
00:19:42]} {[%emt 00:05:37]} Nc6 {[%clk 00:10:04]} {[%emt 00:02:39]} 27. Ke2
{[%clk 00:17:38]} {[%emt 00:02:34]} g5 {[%clk 00:07:15]} {[%emt 00:03:19]} 28.
Kd2 {[%clk 00:15:38]} {[%emt 00:02:29]} Kf5 {[%clk 00:05:35]} {[%emt 00:02:11]}
29. Kc3 {[%clk 00:14:58]} {[%emt 00:01:09]} Ke4 {[%clk 00:05:10]} {[%emt
00:00:56]} 30. a3 {[%clk 00:15:05]} {[%emt 00:00:24]} h6 {[%clk 00:03:03]}
{[%emt 00:02:37]} 31. h4 {[%clk 00:12:36]} {[%emt 00:02:59]} Ne5 {[%clk
00:01:02]} {[%emt 00:02:31]} 32. hxg5 {[%clk 00:12:59]} {[%emt 00:00:07]} hxg5
{[%clk 00:00:59]} {[%emt 00:00:34]} 33. b4 {[%clk 00:13:20]} {[%emt 00:00:07]}
Ng4 {[%clk 00:01:07]} {[%emt 00:00:22]} 34. bxc5 {[%clk 00:13:38]} {[%emt
00:00:12]} Nxe3 {[%clk 00:01:32]} {[%emt 00:00:05]} 35. cxb6 {[%clk 00:12:43]}
{[%emt 00:01:25]} Nxg2 {[%clk 00:00:33]} {[%emt 00:01:30]} 36. b7 {[%clk
00:12:57]} {[%emt 00:00:16]} f5 {[%clk 00:00:35]} {[%emt 00:00:28]} 37. b8=Q
{[%clk 00:13:17]} {[%emt 00:00:10]} f4 {[%clk 00:00:51]} {[%emt 00:00:15]} 38.
Qb7+ {[%clk 00:13:41]} {[%emt 00:00:06]} 1-0

[Event "Swedish Chess Championship 2019: Weekend 1"]
[Site "Stiga Sports Arena, Arenatorget 1, Eskilstuna, Sweden"]
[Date "2019.07.07"]
[Round "5.5"]
[White "Andric, Jelena"]
[Black "Svorono, Gabriel"]
[Result "0-1"]
[TimeControl "90 minutes + 30 seconds per move from move one"]
[WhiteTitle "WFM"]
[WhiteFideId "919853"]
[BlackFideId "1715623"]
[WhiteElo "2099"]
[BlackElo "2098"]

1. c4 {[%clk 01:28:09]} {[%emt 00:02:16]} e5 {[%clk 01:30:55]} {[%emt
00:00:05]} 2. Nc3 {[%clk 01:28:06]} {[%emt 00:00:33]} Nf6 {[%clk 01:31:16]}
{[%emt 00:00:09]} 3. g3 {[%clk 01:27:03]} {[%emt 00:01:33]} d5 {[%clk
01:31:39]} {[%emt 00:00:06]} 4. cxd5 {[%clk 01:27:24]} {[%emt 00:00:10]} Nxd5
{[%clk 01:32:05]} {[%emt 00:00:03]} 5. Bg2 {[%clk 01:27:50]} {[%emt 00:00:04]}
Be6 {[%clk 01:32:26]} {[%emt 00:00:09]} 6. Nf3 {[%clk 01:27:24]} {[%emt
00:00:56]} Nc6 {[%clk 01:32:52]} {[%emt 00:00:03]} 7. O-O {[%clk 01:26:54]}
{[%emt 00:01:01]} Bc5 {[%clk 01:33:00]} {[%emt 00:00:22]} 8. d3 {[%clk
01:23:33]} {[%emt 00:03:51]} Nxc3 {[%clk 01:28:40]} {[%emt 00:04:50]} 9. bxc3
{[%clk 01:23:57]} {[%emt 00:00:06]} O-O {[%clk 01:29:04]} {[%emt 00:00:05]} 10.
Ng5 {[%clk 01:19:07]} {[%emt 00:05:20]} Bd7 {[%clk 01:28:57]} {[%emt 00:00:37]}
11. Rb1 {[%clk 01:17:19]} {[%emt 00:02:19]} Bb6 {[%clk 01:20:09]} {[%emt
00:09:18]} 12. Kh1 {[%clk 01:12:23]} {[%emt 00:05:25]} h6 {[%clk 01:19:36]}
{[%emt 00:01:03]} 13. Ne4 {[%clk 01:05:42]} {[%emt 00:07:12]} Be6 {[%clk
01:18:29]} {[%emt 00:01:37]} 14. Ba3 {[%clk 01:01:31]} {[%emt 00:04:42]} Re8
{[%clk 01:18:43]} {[%emt 00:00:13]} 15. c4 {[%clk 00:55:28]} {[%emt 00:06:35]}
Rb8 {[%clk 01:16:21]} {[%emt 00:02:50]} 16. Qa4 {[%clk 00:35:22]} {[%emt
00:20:37]} Bd7 {[%clk 01:06:58]} {[%emt 00:09:53]} 17. Qd1 {[%clk 00:33:04]}
{[%emt 00:02:49]} Qc8 {[%clk 01:04:29]} {[%emt 00:02:59]} 18. e3 {[%clk
00:24:56]} {[%emt 00:08:38]} Bh3 {[%clk 01:03:18]} {[%emt 00:01:41]} 19. Nc3
{[%clk 00:23:16]} {[%emt 00:02:11]} Ne7 {[%clk 00:54:41]} {[%emt 00:09:05]} 20.
Qh5 {[%clk 00:18:18]} {[%emt 00:05:27]} Bxg2+ {[%clk 00:51:25]} {[%emt
00:03:47]} 21. Kxg2 {[%clk 00:18:37]} {[%emt 00:00:12]} Ba5 {[%clk 00:50:15]}
{[%emt 00:01:41]} 22. Bxe7 {[%clk 00:14:00]} {[%emt 00:05:07]} Bxc3 {[%clk
00:48:48]} {[%emt 00:01:56]} 23. Bb4 {[%clk 00:14:03]} {[%emt 00:00:26]} Bxb4
{[%clk 00:48:55]} {[%emt 00:00:23]} 24. Rxb4 {[%clk 00:14:30]} {[%emt
00:00:04]} c5 {[%clk 00:48:54]} {[%emt 00:00:31]} 25. Rb2 {[%clk 00:10:27]}
{[%emt 00:04:32]} Qc6+ {[%clk 00:49:10]} {[%emt 00:00:13]} 26. Kg1 {[%clk
00:03:53]} {[%emt 00:07:06]} Rbd8 {[%clk 00:48:50]} {[%emt 00:00:49]} 27. Rd1
{[%clk 00:03:32]} {[%emt 00:00:51]} Rd6 {[%clk 00:47:26]} {[%emt 00:01:55]} 28.
e4 {[%clk 00:03:04]} {[%emt 00:00:58]} Qd7 {[%clk 00:47:01]} {[%emt 00:00:54]}
29. Qe2 {[%clk 00:02:30]} {[%emt 00:01:04]} Rd8 {[%clk 00:47:12]} {[%emt
00:00:18]} 30. Rb3 {[%clk 00:02:19]} {[%emt 00:00:43]} Rd4 {[%clk 00:47:09]}
{[%emt 00:00:31]} 31. Rc3 {[%clk 00:02:31]} {[%emt 00:00:19]} b5 {[%clk
00:43:41]} {[%emt 00:03:58]} 32. cxb5 {[%clk 00:02:19]} {[%emt 00:00:43]} Qxb5
{[%clk 00:41:50]} {[%emt 00:02:20]} 33. Rdc1 {[%clk 00:01:41]} {[%emt
00:01:08]} Rxd3 {[%clk 00:40:09]} {[%emt 00:02:10]} 34. Rxd3 {[%clk 00:01:24]}
{[%emt 00:00:48]} Rxd3 {[%clk 00:40:28]} {[%emt 00:00:10]} 35. Qc2 {[%clk
00:00:47]} {[%emt 00:01:07]} Rd4 {[%clk 00:39:35]} {[%emt 00:01:23]} 36. Qxc5
{[%clk 00:00:38]} {[%emt 00:00:40]} Rd1+ {[%clk 00:39:50]} {[%emt 00:00:15]} 37.
Kg2 {[%clk 00:00:59]} {[%emt 00:00:10]} Qf1+ {[%clk 00:40:15]} {[%emt
00:00:04]} 38. Kf3 {[%emt 00:00:15]} Rxc1 {[%emt 00:00:08]} 0-1